fUSD/lending_fUSD_20251130
["ID","MTS","AMOUNT","RATE_DAILY","PERIOD"]
[395150773,1764484239437,-150.0,0.00014574,2]
[395150774,1764484239446,-500.0,0.00014574,2]
[395150775,1764484239457,-483.0,0.00014574,2]
[395150776,1764484239466,-166.66,0.00014582,2]
[395150777,1764484239482,-275.87741623,0.00014619,2]
[395150778,1764484239491,-500.0,0.00014619,2]
[395150779,1764484239500,-500.0,0.00014619,2]
[395150780,1764484239509,-729.0,0.00014711,2]
[395150781,1764484239519,-201.77643634,0.00014711,2]
[395150782,1764484239527,-500.0,0.00014711,2]
[395150783,1764484239536,-150.0,0.00014711,2]
[395150784,1764484239546,-500.0,0.00014711,2]
[395150785,1764484239555,-483.0,0.00014711,2]
[395150786,1764484239564,-500.0,0.00014756,2]
[395150787,1764484239573,-500.0,0.00014756,2]
[395150788,1764484239582,-291.01,0.00014816,2]
[395150789,1764484239592,-729.0,0.00014848,2]
[395150790,1764484239601,-500.0,0.00014848,2]
[395150791,1764484239610,-150.0,0.00014848,2]
[395150792,1764484239620,-354.49922038,0.00014848,2]
[395150793,1764484239634,-483.0,0.00014848,2]
[395150794,1764484239643,-166.66,0.00014889,2]
[395150795,1764484239652,-500.0,0.00014893,2]
[395150796,1764484239661,-500.0,0.00014893,2]
[395150797,1764484239671,-250.0,0.00014958,2]
[395150798,1764484239680,-729.0,0.00014985,2]
[395150799,1764484239689,-500.0,0.00014985,2]
[395150800,1764484239698,-172.0,0.00014985,2]
[395150801,1764484239709,-483.0,0.00014985,2]
[395150802,1764484239718,-2572.59730778,0.00015,4]
[395150803,1764484239727,-12037.00064594,0.00015,2]
[395150804,1764484239737,-255.0,0.00015018,2]
[395150805,1764484239746,-500.0,0.0001503,2]
[395150806,1764484239755,-500.0,0.0001503,2]
[395150807,1764484239764,-166.67,0.00015038,2]
[395150808,1764484239774,-729.0,0.00015122,2]
[395150809,1764484239783,-500.0,0.00015122,2]
[395150810,1764484239791,-483.0,0.00015122,2]
[395150811,1764484239801,-500.0,0.00015167,2]
[395150812,1764484239810,-500.0,0.00015167,2]
[395150813,1764484239819,-199.87,0.00015167,2]
[395150814,1764484239828,-166.66,0.00015196,2]
[395150815,1764484239837,-705.79,0.00015215,2]
[395150816,1764484239846,-291.01,0.00015217,2]
[395150817,1764484239856,-1000.0,0.00015227,2]
[395150818,1764484239865,-729.0,0.00015259,2]
[395150819,1764484239874,-296.85092303,0.00015259,2]
[395150820,1764484239883,-483.0,0.00015259,2]
[395150821,1764484239892,-705.05,0.000153,2]
[395150822,1764484239901,-500.0,0.00015304,2]
[395150823,1764484239911,-500.0,0.00015304,2]
[395150824,1764484239920,-169.03767512,0.00015353,2]
[395150825,1764484239929,-458.00390684,0.00015383,2]
[395150826,1764484239938,-729.0,0.00015396,2]
[395150827,1764484239947,-483.0,0.00015396,2]
[395150828,1764484239956,-293.14949848,0.00015408,2]
[395150829,1764484239965,-500.0,0.00015441,2]
[395150830,1764484239974,-500.0,0.00015441,2]
[395150832,1764484239983,-166.66,0.00015503,2]
[395150834,1764484239992,-729.0,0.00015533,2]
[395150836,1764484240001,-483.0,0.00015533,2]
[395150837,1764484240011,-5299.46,0.00015544,2]
[395150838,1764484240020,-1890.59999574,0.00015569,2]
[395150839,1764484240029,-500.0,0.00015578,2]
[395150840,1764484240038,-500.0,0.00015578,2]
[395150841,1764484240047,-150.0,0.00015596,2]
[395150842,1764484240057,-500.0,0.00015596,2]
[395150843,1764484240066,-1600.0,0.00015596,2]
[395150844,1764484240075,-328.87703586,0.00015614,2]
[395150845,1764484240084,-151.0,0.00015614,2]
[395150846,1764484240093,-1000.0,0.00015614,2]
[395150847,1764484240102,-151.0,0.00015614,2]
[395150848,1764484240112,-607.028602,0.00015614,2]
[395150849,1764484240121,-1000.0,0.00015614,2]
[395150850,1764484240130,-151.0,0.00015614,2]
[395150851,1764484240139,-1000.0,0.00015614,2]
[395150852,1764484240148,-151.0,0.00015614,2]
[395150853,1764484240157,-1000.0,0.00015614,2]
[395150854,1764484240166,-151.0,0.00015614,2]
[395150855,1764484240175,-1000.0,0.00015614,2]
[395150856,1764484240184,-151.0,0.00015614,2]
[395150857,1764484240193,-322.6107,0.00015614,2]
[395150858,1764484240202,-1000.0,0.00015614,2]
[395150859,1764484240212,-151.0,0.00015614,2]
[395150860,1764484240221,-1000.0,0.00015614,2]
[395150861,1764484240230,-151.0,0.00015614,2]
[395150862,1764484240239,-1000.0,0.00015614,2]
[395150863,1764484240249,-151.0,0.00015614,2]
[395150864,1764484240258,-925.58273476,0.00015614,2]
[395150865,1764484240267,-151.0,0.00015614,2]
[395150866,1764484240276,-151.0,0.00015614,2]
[395150867,1764484240285,-151.0,0.00015614,2]
[395150868,1764484240295,-151.0,0.00015614,2]
[395150869,1764484240304,-257.91778498,0.00015614,2]
[395150870,1764484240314,-530.88428487,0.00015614,2]
[395150871,1764484240323,-1000.0,0.00015614,2]
[395150872,1764484240333,-1000.0,0.00015614,2]
[395150873,1764484240342,-1000.0,0.00015614,2]
[395150874,1764484240352,-1000.0,0.00015614,2]
[395150875,1764484240362,-171.87925876,0.00015614,2]
[395150876,1764484240372,-4242.54,0.00015658,2]
[395150877,1764484240381,-729.0,0.0001567,2]
[395150878,1764484240392,-483.0,0.0001567,2]
[395150879,1764484240402,-795.49305875,0.00015688,2]
[395150880,1764484240413,-500.0,0.00015715,2]
[395150881,1764484240422,-500.0,0.00015715,2]
[395150882,1764484240432,-150.0,0.00015733,2]
[395150883,1764484240443,-500.0,0.00015733,2]
[395150884,1764484240453,-152.0,0.00015759,2]
[395150885,1764484240463,-152.0,0.00015759,2]
[395150886,1764484240474,-156.75181041,0.000158,2]
[395150887,1764484240484,-150.0,0.000158,2]
[395150888,1764484240494,-500.0,0.000158,2]
[395150889,1764484240504,-500.0,0.000158,2]
[395150890,1764484240513,-500.0,0.000158,2]
[395150891,1764484240523,-150.0,0.000158,2]
[395150892,1764484240532,-150.0,0.000158,2]
[395150893,1764484240541,-729.0,0.00015807,2]
[395150894,1764484240551,-483.0,0.00015807,2]
[395150895,1764484240561,-166.66,0.0001581,2]
[395150896,1764484240570,-500.0,0.00015852,2]
[395150897,1764484240579,-500.0,0.00015852,2]
[395150898,1764484240590,-150.0,0.0001587,2]
[395150899,1764484240599,-500.0,0.0001587,2]
[395150900,1764484240609,-150.0,0.00015875,2]
[395150901,1764484240618,-150.0,0.00015875,2]
[395150902,1764484240630,-151.84362429,0.00015875,2]
[395150903,1764484240639,-158.23743081,0.00015875,2]
[395150904,1764484240649,-500.0,0.00015875,2]
[395150905,1764484240658,-150.0,0.00015875,2]
[395150906,1764484240668,-150.0,0.00015875,2]
[395150907,1764484240677,-150.0,0.00015875,2]
[395150908,1764484240686,-150.0,0.00015875,2]
[395150909,1764484240696,-150.0,0.00015875,2]
[395150910,1764484240705,-441.2953905,0.000159,2]
[395150911,1764484240714,-441.29539049,0.000159,2]
[395150912,1764484240723,-199.87,0.00015926,2]
[395150913,1764484240733,-150.0,0.00015937,2]
[395150914,1764484240742,-510.24253861,0.00015937,2]
[395150915,1764484240751,-500.0,0.00015937,2]
[395150916,1764484240761,-500.0,0.00015937,2]
[395150917,1764484240770,-158.36983684,0.00015937,2]
[395150918,1764484240779,-150.0,0.00015937,2]
[395150919,1764484240788,-729.0,0.00015944,2]
[395150920,1764484240797,-483.0,0.00015944,2]
[395150921,1764484240807,-500.0,0.00015973,2]
[395150922,1764484240816,-500.0,0.00015973,2]
[395150923,1764484240826,-201.11548058,0.00015973,2]
[395150924,1764484240835,-500.0,0.00015973,2]
[395150925,1764484240844,-206.29421011,0.00015973,2]
[395150927,1764484240853,-500.0,0.00015973,2]
[395150928,1764484240862,-500.0,0.00015973,2]
[395150929,1764484240872,-500.0,0.00015989,2]
[395150930,1764484240882,-500.0,0.00015989,2]
[395150931,1764484240891,-151.0,0.00015997,2]
[395150933,1764484240899,-319.26681909,0.00016,2]
[395150935,1764484240908,-23666.07387272,0.00016,2]
[395150936,1764484240917,-80242.06015155,0.00016,2]
[395150938,1764484240926,-212073.56098378,0.00016,4]
[395150940,1764484240935,-150.54642357,0.00016007,2]
[395150942,1764484240944,-500.0,0.00016007,2]
[395150944,1764484240953,-150.0,0.00016012,2]
[395150946,1764484240962,-150.0,0.00016012,2]
[395150947,1764484240971,-500.0,0.00016012,2]
[395150949,1764484240980,-242.55724109,0.00016012,2]
[395150951,1764484240989,-152.9703148,0.00016012,2]
[395150953,1764484240999,-150.49016812,0.00016012,2]
[395150955,1764484241008,-155.31226656,0.00016012,2]
[395150957,1764484241017,-150.0,0.00016012,2]
[395150958,1764484241027,-210.88765976,0.00016074,2]
[395150960,1764484241036,-500.0,0.00016074,2]
[395150962,1764484241045,-304.70213871,0.00016074,2]
[395150964,1764484241054,-150.0,0.00016074,2]
[395150966,1764484241063,-729.0,0.00016081,2]
[395150967,1764484241072,-483.0,0.00016081,2]
[395150969,1764484241081,-999.0,0.00016085,3]
[395150971,1764484241090,-166.66,0.00016117,2]
[395150972,1764484241100,-414.77797921,0.00016118,2]
[395150974,1764484241109,-500.0,0.00016126,2]
[395150975,1764484241118,-461.93375674,0.00016126,2]
[395150976,1764484241127,-500.0,0.00016144,2]
[395150977,1764484241136,-236.72605588,0.00016149,2]
[395150978,1764484241146,-207.68168826,0.00016149,2]
[395150979,1764484241155,-500.0,0.00016149,2]
[395150980,1764484241164,-150.0,0.00016149,2]
[395150981,1764484241173,-1000.0,0.00016162,2]
[395150982,1764484241182,-166.67,0.00016184,2]
[395150983,1764484241191,-5000.00745737,0.000162,5]
[395150984,1764484241200,-500.0,0.00016211,2]
[395150985,1764484241209,-150.0,0.00016211,2]
[395150986,1764484241218,-433.0,0.00016214,2]
[395150987,1764484241227,-729.0,0.00016218,2]
[395150988,1764484241236,-483.0,0.00016218,2]
[395150989,1764484241245,-500.0,0.00016263,2]
[395150990,1764484241255,-500.0,0.00016281,2]
[395150991,1764484241263,-462.94382989,0.00016286,2]
[395150992,1764484241273,-202.65186002,0.00016286,2]
[395150993,1764484241282,-200.0,0.0001634,2]
[395150994,1764484241291,-500.0,0.00016348,2]
[395150995,1764484241300,-204.87473357,0.00016348,2]
[395150996,1764484241310,-802.0,0.00016352,2]
[395150997,1764484241319,-729.0,0.00016355,2]
[395150998,1764484241329,-483.0,0.00016355,2]
[395150999,1764484241339,-802.0,0.00016375,2]
[395151000,1764484241348,-587.79826492,0.000164,2]
[395151001,1764484241357,-500.0,0.00016418,2]
[395151002,1764484241367,-150.0,0.00016438,2]
[395151003,1764484241376,-500.0,0.00016438,2]
[395151004,1764484241386,-500.0,0.00016438,2]
[395151005,1764484241395,-500.0,0.00016438,2]
[395151006,1764484241405,-500.0,0.00016438,2]
[395151007,1764484241415,-500.0,0.00016438,2]
[395151008,1764484241424,-202.41076335,0.00016455,2]
[395151009,1764484241434,-802.0,0.00016461,2]
[395151010,1764484241444,-156.42794575,0.00016485,2]
[395151011,1764484241453,-729.0,0.00016492,2]
[395151012,1764484241462,-483.0,0.00016492,2]
[395151013,1764484241472,-1000.0,0.00016521,2]
[395151014,1764484241482,-1000.0,0.00016521,2]
[395151015,1764484241491,-1000.0,0.00016521,2]
[395151016,1764484241500,-1000.0,0.00016521,2]
[395151017,1764484241509,-217.04067786,0.00016555,2]
[395151018,1764484241518,-4013.0,0.00016575,2]
[395151019,1764484241529,-150.0,0.00016575,2]
[395151020,1764484241538,-500.0,0.00016575,2]
[395151021,1764484241547,-1784.0,0.000166,2]
[395151022,1764484241556,-729.0,0.00016629,2]
[395151023,1764484241565,-483.0,0.00016629,2]
[395151024,1764484241576,-4013.0,0.0001665,2]
[395151025,1764484241586,-1846.0,0.00016656,2]
[395151026,1764484241595,-199.87,0.00016684,2]
[395151027,1764484241604,-1846.0,0.00016685,2]
[395151028,1764484241613,-1000.0,0.0001671,2]
[395151029,1764484241622,-179.75220737,0.00016712,2]
[395151030,1764484241635,-500.0,0.00016712,2]
[395151031,1764484241645,-1846.0,0.00016719,2]
[395151032,1764484241655,-1846.0,0.00016745,2]
[395151033,1764484241666,-247.75824049,0.00016752,2]
[395151034,1764484241678,-729.0,0.00016766,2]
[395151035,1764484241687,-483.0,0.00016766,2]
[395151036,1764484241697,-1846.0,0.00016805,2]
[395151037,1764484241708,-500.0,0.00016849,2]
[395151038,1764484241717,-200.0,0.00016864,2]
[395151039,1764484241726,-474.91246233,0.000169,2]
[395151040,1764484241735,-882.03555628,0.000169,2]
[395151041,1764484241744,-215.40111016,0.000169,2]
[395151042,1764484241754,-636.713413,0.000169,2]
[395151043,1764484241767,-729.0,0.00016903,2]
[395151044,1764484241779,-483.0,0.00016903,2]
[395151045,1764484241791,-1000.0,0.00016919,2]
[395151046,1764484241801,-1846.0,0.00016937,2]
[395151047,1764484241812,-222.74986184,0.00016955,2]
[395151048,1764484241822,-1846.0,0.00016962,2]
[395151049,1764484241831,-540.53867105,0.00016973,2]
[395151050,1764484241841,-500.0,0.00016973,2]
[395151051,1764484241850,-500.0,0.00016973,2]
[395151052,1764484241859,-500.0,0.00016973,2]
[395151053,1764484241867,-500.0,0.00016973,2]
[395151054,1764484241876,-500.0,0.00016973,2]
[395151055,1764484241885,-500.0,0.00016973,2]
[395151056,1764484241894,-500.0,0.00016973,2]
[395151057,1764484241903,-500.0,0.00016973,2]
[395151058,1764484241912,-616.40948711,0.00016973,2]
[395151059,1764484241921,-500.0,0.00016973,2]
[395151060,1764484241930,-507.2295556,0.00016973,2]
[395151061,1764484241939,-500.0,0.00016973,2]
[395151062,1764484241948,-500.0,0.00016973,2]
[395151063,1764484241957,-500.0,0.00016973,2]
[395151064,1764484241967,-500.838144,0.00016973,2]
[395151065,1764484241977,-176.66973248,0.00016973,2]
[395151066,1764484241986,-500.49965341,0.00016973,2]
[395151067,1764484241995,-500.0,0.00016973,2]
[395151068,1764484242005,-281.71884417,0.00016973,2]
[395151069,1764484242013,-500.0,0.00016973,2]
[395151070,1764484242022,-500.0,0.00016973,2]
[395151071,1764484242032,-500.0,0.00016973,2]
[395151072,1764484242041,-500.0,0.00016973,2]
[395151073,1764484242050,-500.0,0.00016973,2]
[395151074,1764484242059,-215.92719524,0.00016973,2]
[395151075,1764484242067,-500.0,0.00016973,2]
[395151076,1764484242076,-500.0,0.00016973,2]
[395151077,1764484242085,-500.0,0.00016973,2]
[395151078,1764484242094,-500.0,0.00016973,2]
[395151079,1764484242103,-500.0,0.00016973,2]
[395151080,1764484242112,-500.0,0.00016973,2]
[395151081,1764484242121,-415.54250471,0.00016973,2]
[395151082,1764484242130,-500.0,0.00016973,2]
[395151083,1764484242139,-187.03419553,0.00016973,2]
[395151084,1764484242149,-172.99922432,0.00016973,2]
[395151085,1764484242158,-500.0,0.00016973,2]
[395151086,1764484242167,-500.0,0.00016973,2]
[395151087,1764484242176,-334.5472959,0.00016983,2]
[395151088,1764484242185,-267.46074303,0.00016983,2]
[395151089,1764484242195,-500.0,0.00016986,2]
[395151090,1764484242205,-1347.0,0.00016986,2]
[395151091,1764484242215,-151.0,0.00016997,2]
[395151092,1764484242224,-300.0,0.00016999,2]
[395151093,1764484242234,-300.0,0.00016999,2]
[395151094,1764484242243,-500.0,0.00016999,2]
[395151095,1764484242253,-500.0,0.00016999,2]
[395151096,1764484242262,-500.0,0.00016999,2]
[395151097,1764484242271,-500.0,0.00016999,2]
[395151098,1764484242280,-500.0,0.00016999,2]
[395151099,1764484242289,-500.0,0.00016999,2]
[395151100,1764484242298,-500.0,0.00016999,2]
[395151101,1764484242310,-500.0,0.00016999,2]
[395151102,1764484242320,-500.0,0.00016999,2]
[395151103,1764484242330,-500.0,0.00016999,2]
[395151104,1764484242339,-500.0,0.00016999,2]
[395151105,1764484242348,-500.0,0.00016999,2]
[395151106,1764484242358,-500.0,0.00016999,2]
[395151107,1764484242367,-191.9483848,0.00016999,2]
[395151108,1764484242376,-364636.02679412,0.00017,2]
[395151109,1764484242386,-160.0,0.00017,2]
[395151110,1764484242396,-151.0,0.00017,2]
[395151111,1764484242405,-401.19266763,0.00017,2]
[395151112,1764484242415,-589.0617767,0.00017,2]
[395151113,1764484242424,-250.0,0.00017,2]
[395151114,1764484242434,-264865.283503,0.00017,2]
[395151115,1764484242443,-7823.9500518,0.00017,2]
[395151116,1764484242452,-1248.56965651,0.00017,2]
[395151117,1764484242461,-15308.9228356,0.00017,2]
[395151118,1764484242470,-2000.0,0.00017,2]
[395151119,1764484242479,-200.0,0.00017,2]
[395151120,1764484242488,-2548865.21049735,0.00017,2]
[395151121,1764484242784,-1553.69,0.00017,2]
[395151122,1764484242837,-4334.59439694,0.00017,2]
[395151123,1764484242975,-86142.6593798,0.00017,2]
[395151124,1764484242986,-515.38747052,0.00017,2]
[395151125,1764484243001,-258.6849,0.00017,2]
[395151126,1764484243028,-65949.66101619,0.00017,2]
[395151127,1764484243039,-15631.90960036,0.00017,2]
[395151128,1764484243050,-339.42499964,0.00017,2]
[395151129,1764484243272,-430.80222033,0.00016659,2]
[395151133,1764484246749,-481.89017131,0.00014007,2]
[395151174,1764484369562,-1106.3053,0.00013515,2]
[395151234,1764484451871,500.0,0.00022,30]
[395151257,1764484485116,162.45,0.00019178,30]
[395151258,1764484532573,500.0,0.00025,120]
[395151262,1764484616567,500.0,0.00025,120]
[395151264,1764484669499,500.0,0.00025,120]
[395151265,1764484692565,500.0,0.00025,120]
[395151266,1764484740546,500.0,0.00022,30]
[395151268,1764484763975,1883.82,0.00013387,2]
[395151270,1764484777799,500.0,0.00014007,4]
[395151274,1764484821580,500.0,0.00025,120]
[395151275,1764484822490,1045.29,0.00013354,2]
[395151301,1764484916582,500.0,0.00025,120]
[395151304,1764484937270,207.4,0.00013499,2]
[395151305,1764484945775,200.0,0.00013499,2]
[395151307,1764484959775,2482.12,0.00013141,2]
[395151319,1764485086846,4181.38,0.00013198,2]
[395151320,1764485086875,10000.01,0.00013198,2]
[395151321,1764485086901,10000.01,0.00013198,2]
[395151322,1764485086925,10000.01,0.00013198,2]
[395151323,1764485087370,10000.01,0.00013198,2]
[395151324,1764485087395,10000.01,0.00013198,2]
[395151325,1764485087419,10000.01,0.00013198,2]
[395151326,1764485087442,10000.01,0.00013198,2]
[395151327,1764485087465,4180.66,0.00013198,2]
[395151340,1764485230666,162.84,0.00010464,2]
[395151341,1764485230869,162.84,0.00012208,2]
[395151355,1764485287550,724.17,0.00025,120]
[395151356,1764485292692,2751.0,0.00012999,2]
[395151357,1764485296895,220.09,0.00012999,2]
[395151528,1764485358561,1500.0,0.00012971,2]
[395151564,1764485432052,-300.0,0.00013199,2]
[395151565,1764485432061,-106.08,0.00013199,2]
[395151566,1764485432073,-1093.92,0.00013199,2]
[395151567,1764485432084,-1445.74725529,0.000132,2]
[395151568,1764485432126,-9776.94274471,0.000132,2]
[395151569,1764485432136,-250.0,0.00013299,2]
[395151570,1764485432147,-170.89910719,0.00013399,2]
[395151571,1764485432157,-277.72917998,0.0001344,2]
[395151572,1764485432167,-500.0,0.00013499,2]
[395151573,1764485432178,-170.89910717,0.00013553,2]
[395151574,1764485432188,-200.0,0.00013699,2]
[395151575,1764485432199,-950.0,0.00013699,2]
[395151576,1764485432208,-200.0,0.00013701,2]
[395151577,1764485432219,-345.32446194,0.00013703,2]
[395151578,1764485432230,-170.89910717,0.00013706,2]
[395151579,1764485432239,-337.35127225,0.00013706,2]
[395151580,1764485432248,-1008.71,0.00013706,2]
[395151581,1764485432258,-149.48705359,0.00013706,2]
[395151582,1764485432271,-30.44544721,0.00013706,2]
[395151583,1764485432280,-413.09201025,0.00013706,2]
[395151584,1764485432291,-196.4507859,0.00013706,2]
[395151585,1764485432300,-25990.23669889,0.00013707,2]
[395151586,1764485432311,-1390.94928522,0.00013707,2]
[395151588,1764485432375,-176.95465609,0.00013705,2]
[395151590,1764485432384,-483.47007939,0.00013707,2]
[395151592,1764485432395,-327.06704967,0.00013707,2]
[395151594,1764485432406,-448.54201431,0.00013707,2]
[395151615,1764485438234,-300.6,0.00013705,2]
[395151616,1764485438246,-199.4,0.00013705,2]
[395151617,1764485438255,-500.0,0.00013705,2]
[395151618,1764485438264,-500.0,0.00013705,2]
[395151619,1764485438274,-423.44042328,0.00013705,2]
[395151620,1764485438284,-500.0,0.00013705,2]
[395151621,1764485438292,-500.0,0.00013705,2]
[395151622,1764485438301,-500.0,0.00013705,2]
[395151623,1764485438311,-500.0,0.00013705,2]
[395151624,1764485438320,-499.99999999,0.00013705,2]
[395151625,1764485438329,-500.0,0.00013705,2]
[395151626,1764485438338,-500.0,0.00013705,2]
[395151627,1764485438347,-731359.73487252,0.00013707,2]
[395151628,1764485438357,-150.0,0.00013803,2]
[395151629,1764485438366,-150.99,0.00013805,2]
[395151630,1764485438375,-3511.55,0.00013805,2]
[395151631,1764485438384,-3878.178,0.00013806,2]
[395151632,1764485438399,-179.091,0.00013806,2]
[395151633,1764485438418,-9999.99,0.00013806,2]
[395151634,1764485438431,-9999.99,0.00013806,2]
[395151635,1764485438459,-299.99,0.00013806,2]
[395151636,1764485438480,-2954.41,0.00013806,2]
[395151637,1764485438501,-999.99,0.00013806,2]
[395151638,1764485438517,-1428.12,0.00013806,2]
[395151641,1764485438536,-150.99,0.00013806,2]
[395151643,1764485438553,-10954.35841486,0.00013807,2]
[395151644,1764485438571,-9219.56366964,0.00013807,2]
[395151645,1764485438589,-33399.3792,0.00013807,2]
[395151646,1764485438608,-2500.0,0.00013807,2]
[395151647,1764485438625,-151.0,0.00013904,2]
[395151649,1764485438641,-500.0,0.00013907,2]
[395151650,1764485438661,-150.0,0.00013907,2]
[395151651,1764485438679,-150.0,0.00013907,2]
[395151652,1764485438694,-500.0,0.00013907,2]
[395151653,1764485438706,-500.0,0.00013907,2]
[395151654,1764485438725,-500.0,0.00013907,2]
[395151655,1764485438737,-150.0,0.00013907,2]
[395151656,1764485438750,-150.0,0.00013907,2]
[395151657,1764485438773,-150.0,0.00013907,2]
[395151658,1764485438787,-500.0,0.00013907,2]
[395151659,1764485438800,-621.79084846,0.00013907,2]
[395151660,1764485438857,-219.97289193,0.00013907,2]
[395151661,1764485438878,-500.0,0.00013907,2]
[395151662,1764485438898,-500.0,0.00013907,2]
[395151663,1764485438915,-500.0,0.00013907,2]
[395151664,1764485438934,-500.0,0.00013907,2]
[395151665,1764485438952,-500.0,0.00013907,2]
[395151666,1764485438970,-729.0,0.00013907,2]
[395151667,1764485438989,-150.0,0.00013907,2]
[395151668,1764485439007,-500.0,0.00013907,2]
[395151669,1764485439023,-500.0,0.00013907,2]
[395151670,1764485439040,-500.0,0.00013907,2]
[395151671,1764485439062,-500.0,0.00013907,2]
[395151672,1764485439080,-500.0,0.00013907,2]
[395151673,1764485439104,-500.0,0.00013907,2]
[395151674,1764485439123,-160.73087474,0.00013907,2]
[395151675,1764485439143,-150.0,0.00013907,2]
[395151676,1764485439161,-500.0,0.00013907,2]
[395151677,1764485439178,-500.0,0.00013907,2]
[395151678,1764485439195,-641.47208077,0.00013907,2]
[395151679,1764485439211,-162.44987593,0.00013907,2]
[395151680,1764485439229,-150.0,0.00013907,2]
[395151681,1764485439245,-150.0,0.00013907,2]
[395151682,1764485439260,-151.84362429,0.00013907,2]
[395151683,1764485439276,-158.23743081,0.00013907,2]
[395151684,1764485439292,-500.0,0.00013907,2]
[395151685,1764485439309,-150.0,0.00013907,2]
[395151686,1764485439325,-150.0,0.00013907,2]
[395151687,1764485439340,-150.0,0.00013907,2]
[395151688,1764485439354,-150.0,0.00013907,2]
[395151689,1764485439370,-150.0,0.00013907,2]
[395151690,1764485439385,-169.4397301,0.00013907,2]
[395151691,1764485439400,-500.0,0.00013907,2]
[395151692,1764485439419,-500.0,0.00013907,2]
[395151693,1764485439436,-500.0,0.00013907,2]
[395151694,1764485439452,-520.38859671,0.00013907,2]
[395151695,1764485439467,-500.0,0.00013907,2]
[395151696,1764485439483,-483.0,0.00013907,2]
[395151697,1764485439500,-255.07516903,0.00013907,2]
[395151698,1764485439514,-500.0,0.00013907,2]
[395151699,1764485439529,-500.0,0.00013907,2]
[395151700,1764485439543,-150.0,0.00013907,2]
[395151701,1764485439557,-158.73149787,0.00013907,2]
[395151702,1764485439573,-500.0,0.00013907,2]
[395151703,1764485439587,-500.0,0.00013907,2]
[395151704,1764485439605,-500.0,0.00013907,2]
[395151705,1764485439620,-500.0,0.00013907,2]
[395151706,1764485439636,-181.30501265,0.00013907,2]
[395151707,1764485439649,-500.0,0.00013907,2]
[395151708,1764485439664,-500.0,0.00013907,2]
[395151709,1764485439677,-500.0,0.00013907,2]
[395151710,1764485439692,-500.0,0.00013907,2]
[395151711,1764485439706,-500.0,0.00013907,2]
[395151712,1764485439720,-500.0,0.00013907,2]
[395151713,1764485439734,-1000.0,0.00013907,2]
[395151714,1764485439747,-162.84,0.00013952,2]
[395151715,1764485439761,-1008.71,0.0001398,2]
[395151716,1764485439778,-18.10982869,0.00014007,2]
[395151717,1764485439791,-500.0,0.00014007,2]
[395151718,1764485439804,-500.0,0.00014007,2]
[395151719,1764485439818,-500.0,0.00014007,2]
[395151720,1764485439831,-500.0,0.00014007,2]
[395151721,1764485439844,-500.0,0.00014007,2]
[395151722,1764485439858,-500.0,0.00014007,2]
[395151723,1764485439871,-500.0,0.00014007,2]
[395151724,1764485439884,-500.0,0.00014007,2]
[395151725,1764485439898,-500.0,0.00014007,2]